bitfinex/quotes_ETHUSD_20240715
["timestamp","ask_amount","ask_price","bid_price","bid_amount"]
[1721029603093,4.661929,3363.9,3363.4,0.1184596]
[1721029604425,2.67568,3363.7,3363.4,0.1184596]
[1721029604633,5.2819,3363.6,3363.4,0.1184596]
[1721029604791,0.55,3363.5,3363.4,0.1184596]
[1721029604999,1.400758,3363.5,3363.4,0.1184596]
[1721029605198,4.076538,3363.5,3363.4,0.1184596]
[1721029605427,4.400758,3363.5,3363.4,0.1184596]
[1721029609022,5.4450931,3363.8,3363.4,0.1184596]
[1721029609232,12.630005,3364.3,3363.7,1.7]
[1721029609233,5.4450931,3364.3,3363.7,1.7]
[1721029610642,3.0,3364.2,3363.7,1.7]
[1721029611338,3.84450931,3364.2,3363.7,1.7]
[1721029613241,3.84450931,3364.2,3363.4,0.1184596]
[1721029613600,0.55,3364.1,3363.4,0.1184596]
[1721029614747,2.2557,3364.0,3363.4,0.1184596]
[1721029614916,5.2557,3364.0,3363.4,0.1184596]
[1721029615098,0.96502093,3363.9,3363.4,0.1184596]
[1721029615298,3.96502093,3363.9,3363.4,0.1184596]
[1721029618121,0.55,3363.8,3363.4,0.1184596]
[1721029619545,1.02894932,3363.7,3363.4,0.1184596]
[1721029619741,0.55,3363.6,3363.4,0.1184596]
[1721029619920,0.41,3363.5,3363.4,0.1184596]
[1721029620121,3.0,3363.7,3363.4,0.1184596]
[1721029620321,0.55,3363.6,3363.4,0.1184596]
[1721029620537,3.22555,3363.8,3363.4,0.1184596]
[1721029620706,4.02896165,3363.7,3363.4,0.1184596]
[1721029620913,0.55,3363.6,3363.4,0.1184596]
[1721029621143,0.677555,3363.5,3363.4,0.1184596]
[1721029621336,1.227555,3363.5,3363.4,0.1184596]
[1721029621533,0.55,3363.5,3363.4,0.1184596]
[1721029621737,0.96502093,3363.9,3363.4,0.1184596]
[1721029621738,0.55,3363.7,3363.4,0.1184596]
[1721029621919,0.55,3363.8,3363.4,0.1184596]
[1721029622121,1.02891585,3363.7,3363.4,0.1184596]
[1721029622320,1.37194168,3363.6,3363.4,0.1184596]
[1721029622632,0.55,3363.5,3363.4,0.1184596]
[1721029624850,1.57897601,3363.5,3363.4,0.1184596]
[1721029625153,1.57897839,3363.5,3363.4,0.1184596]
[1721029625516,1.5789843,3363.5,3363.4,0.1184596]
[1721029625840,2.1190769,3363.5,3363.4,0.1184596]
[1721029626076,5.1190769,3363.5,3363.4,0.1184596]
[1721029628113,5.11908222,3363.5,3363.4,0.1184596]
[1721029628356,5.11908622,3363.5,3363.4,0.1184596]
[1721029628713,7.45448622,3363.5,3363.4,0.1184596]
[1721029629628,10.13026622,3363.5,3363.4,0.1184596]
[1721029631456,10.130334,3363.5,3363.4,0.1184596]
[1721029632675,13.73531401,3363.5,3363.4,0.1184596]
[1721029633276,13.103614,3363.5,3363.4,0.1184596]
[1721029633575,14.04504734,3363.5,3363.4,0.1184596]
[1721029633763,13.73790242,3363.5,3363.4,0.1184596]
[1721029633964,12.806114,3363.5,3363.4,0.1184596]
[1721029634163,13.73788869,3363.5,3363.4,0.1184596]
[1721029634365,14.04504734,3363.5,3363.4,0.1184596]
[1721029634581,13.73842711,3363.5,3363.4,0.1184596]
[1721029634874,12.8062168,3363.5,3363.4,0.1184596]
[1721029635079,14.04918378,3363.5,3363.4,0.1184596]
[1721029636283,14.65742731,3363.5,3363.4,0.1184596]
[1721029636498,12.80620967,3363.5,3363.4,0.1184596]
[1721029637597,14.3062418,3363.5,3363.4,0.1184596]
[1721029637901,18.58841139,3363.5,3363.4,0.1184596]
[1721029638267,17.33136507,3363.5,3363.4,0.1184596]
[1721029639677,19.19682066,3363.5,3363.4,0.1184596]
[1721029640482,19.5074507,3363.5,3363.4,0.1184596]
[1721029640679,16.61280591,3363.5,3363.4,0.1184596]
[1721029641015,19.50756202,3363.5,3363.4,0.1184596]
[1721029641224,13.46633975,3363.5,3363.4,0.1184596]
[1721029641633,15.02077001,3363.5,3363.4,0.1184596]
[1721029641920,11.79499001,3363.5,3363.4,0.1184596]
[1721029642133,11.48406634,3363.5,3363.4,0.1184596]
[1721029642290,12.91633975,3363.5,3363.4,0.1184596]
[1721029642706,14.15991609,3363.5,3363.4,0.1184596]
[1721029643022,15.01957716,3363.5,3363.4,0.1184596]
[1721029643440,5.50962689,3363.5,3363.4,0.1184596]
[1721029643656,1.39178715,3363.5,3363.4,0.1184596]
[1721029643923,0.62176528,3363.8,3363.4,0.1184596]
[1721029644090,5.4450931,3364.0,3363.4,0.1184596]
[1721029644293,5.4450931,3364.0,3363.5,1.7]
[1721029644623,5.4450931,3364.0,3363.6,0.18184596]
[1721029644826,5.4450931,3364.0,3363.5,1.7]
[1721029645722,5.4450931,3364.0,3363.4,0.1184596]
[1721029646605,5.4450931,3364.0,3363.5,1.7]
[1721029647517,3.0,3363.9,3363.5,1.7]
[1721029648037,5.4450931,3364.3,3363.9,1.7]
[1721029648243,0.62176528,3364.7,3363.9,1.87]
[1721029648557,5.4450931,3364.9,3364.3,1.7]
[1721029648763,0.58292879,3365.2,3364.4,2.3639]
[1721029648978,1.86500881,3365.5,3365.2,2.3639]
[1721029648979,0.31056837,3365.5,3365.2,2.3639]
[1721029649118,2.57003805,3365.7,3365.2,2.3639]
[1721029649315,2.57003805,3365.7,3365.1,1.7]
[1721029649555,2.57003805,3365.7,3364.7,1.7]
[1721029649760,2.57003805,3365.7,3364.8,0.40639]
[1721029649926,2.57003805,3365.7,3364.7,1.7]
[1721029650620,0.55,3365.6,3364.7,1.7]
[1721029651220,3.55,3365.6,3364.3,1.7]
[1721029651654,3.55,3365.6,3364.1,1.7]
[1721029651859,3.55,3365.6,3364.0,2.97]
[1721029651860,5.14611,3365.5,3364.0,2.97]
[1721029652031,3.55,3365.4,3364.1,0.484]
[1721029652725,6.22427,3365.4,3364.1,0.484]
[1721029653822,3.55,3365.4,3364.0,2.97]
[1721029654023,2.67451,3365.1,3364.0,2.97]
[1721029654254,2.67451,3365.1,3363.7,1.7]
[1721029654255,3.55,3365.0,3363.7,1.7]
[1721029654755,0.55,3365.0,3363.7,1.7]
[1721029655148,0.55,3365.3,3363.7,1.7]
[1721029655454,0.55,3365.3,3363.8,0.17]
[1721029655659,8.75459396,3365.4,3364.2,1.7]
[1721029655857,8.4450931,3365.4,3364.2,1.7]
[1721029656058,8.4450931,3365.4,3364.3,0.17]
[1721029656272,11.1193831,3365.4,3364.2,1.7]
[1721029656771,11.1193831,3365.4,3363.8,0.17]
[1721029656772,2.67436,3365.3,3363.8,0.17]
[1721029657073,3.55,3365.2,3363.8,0.17]
[1721029657373,3.55,3365.2,3363.9,1.7]
[1721029657680,2.67451,3365.1,3363.9,1.7]
[1721029657842,3.0,3365.0,3363.5,1.7]
[1721029658157,2.3693,3364.6,3363.5,1.7]
[1721029658356,2.3693,3364.6,3363.6,0.47884596]
[1721029658673,0.55,3364.5,3363.6,0.47884596]
[1721029658871,3.55,3364.5,3363.6,0.47884596]
[1721029659274,3.55,3364.5,3363.5,1.7]
[1721029663787,3.0,3364.5,3363.5,1.7]
[1721029664690,3.0,3364.5,3363.9,1.7]
[1721029664992,5.4450931,3364.6,3363.9,1.7]
[1721029666503,3.0,3364.5,3363.9,1.7]
[1721029666674,3.0,3364.5,3364.0,0.17]
[1721029668360,3.0,3364.5,3363.4,0.1184596]
[1721029668565,3.0,3364.5,3363.6,1.7]
[1721029670596,3.0096,3364.4,3363.6,1.7]
[1721029670769,3.0,3364.3,3363.6,1.7]
[1721029674313,3.0,3364.5,3363.6,1.7]
[1721029674612,3.0,3364.5,3363.7,0.18184596]
[1721029675549,3.0,3364.5,3363.6,1.7]
[1721029679343,1.02863431,3364.4,3363.6,1.7]
[1721029679507,3.0,3364.5,3363.6,1.7]
[1721029679833,1.02864324,3364.4,3363.6,1.7]
[1721029680044,3.0,3364.5,3363.6,1.7]
[1721029680335,1.02863217,3364.4,3363.7,0.18184596]
[1721029680520,3.0,3364.5,3363.7,0.18184596]
[1721029680721,1.02861956,3364.4,3363.7,0.18184596]
[1721029681027,3.0,3364.5,3363.7,0.18184596]
[1721029681342,1.02860624,3364.4,3363.7,0.18184596]
[1721029681520,1.02860624,3364.4,3363.6,1.7]
[1721029681521,1.02860624,3364.4,3363.8,0.1881846]
[1721029681726,1.02860624,3364.3,3363.8,0.1881846]
[1721029681920,1.02860624,3364.4,3363.8,0.1881846]
[1721029682126,1.028617,3364.3,3363.8,0.1881846]
[1721029682309,3.0,3364.5,3363.8,0.1881846]
[1721029682523,3.0,3364.5,3364.4,1.7]
[1721029682717,3.0,3364.5,3364.4,1.87]
[1721029683028,5.4450931,3364.9,3364.4,1.87]
[1721029683029,3.0,3364.8,3364.4,1.87]
[1721029683906,1.02846777,3364.7,3364.4,1.87]
[1721029684106,3.0,3364.8,3364.4,1.7]
[1721029684958,5.4450931,3364.9,3364.4,1.7]
[1721029685643,5.4450931,3364.9,3364.0,2.38684386]
[1721029685644,5.4450931,3364.9,3364.8,1.7]
[1721029685802,8.4450931,3364.9,3364.8,1.7]
[1721029686580,5.4450931,3364.9,3364.8,1.87]
[1721029688792,3.0,3365.6,3365.2,1.7]
[1721029689094,0.05179434,3365.9,3365.2,1.7]
[1721029689095,3.0,3365.5,3365.2,1.7]
[1721029689248,3.05179434,3365.9,3365.2,1.7]
[1721029689571,3.05179434,3365.9,3365.3,0.17]
[1721029689572,3.0,3365.8,3365.3,0.17]
[1721029689777,0.05179434,3365.9,3365.3,0.17]
[1721029690783,0.05179434,3365.9,3365.2,1.7]
[1721029692992,2.2907,3366.2,3365.6,1.7]
[1721029692993,5.2907,3366.2,3365.6,1.7]
[1721029693359,2.2907,3366.2,3365.6,1.7]
[1721029694901,3.0,3366.4,3365.6,1.7]
[1721029695061,3.0,3366.5,3365.6,1.7]
[1721029695262,1.14684689,3366.4,3365.6,1.7]
[1721029695973,3.0,3366.5,3365.6,1.7]
[1721029696169,0.05178617,3366.7,3366.0,1.7]
[1721029696170,0.67146886,3366.7,3366.0,1.7]
[1721029696496,3.67146886,3366.7,3366.0,1.7]
[1721029696907,0.05178617,3366.7,3366.0,1.7]
[1721029697200,3.0,3366.6,3366.4,1.7]
[1721029697495,0.05178617,3366.7,3366.4,1.7]
[1721029697898,2.3852,3367.0,3366.4,1.7]
[1721029697899,3.0,3366.9,3366.4,1.7]
[1721029698211,3.60059142,3366.9,3366.4,1.7]
[1721029698694,3.0,3366.9,3366.4,1.7]
[1721029698911,2.3852,3367.0,3366.0,1.7]
[1721029699063,2.3852,3367.0,3365.4,2.2953]
[1721029699064,1.17071416,3366.9,3365.5,1.7]
[1721029699263,1.17071416,3366.9,3365.6,1.7]
[1721029699485,1.02117007,3366.8,3365.6,1.7]
[1721029701204,3.00591416,3367.0,3366.0,1.7]
[1721029701413,0.05177534,3367.1,3366.4,1.7]
[1721029701610,0.05177534,3367.1,3366.0,2.599]
[1721029701611,2.3021,3367.5,3366.8,1.7]
[1721029702462,2.48176961,3367.9,3366.8,1.7]
[1721029702704,2.48176961,3367.9,3366.9,0.17]
[1721029703870,2.89391416,3368.4,3367.2,1.7]
[1721029704216,2.89391416,3368.4,3367.6,1.7]
[1721029704217,2.2732,3368.4,3367.6,1.7]
[1721029705881,2.2732,3368.4,3367.2,1.7]
[1721029705882,2.67197,3368.3,3367.2,1.7]
[1721029706206,2.67197,3368.3,3366.9,0.17]
[1721029706207,0.494517,3368.2,3366.9,1.87]
[1721029706409,3.494517,3368.2,3366.9,1.87]
[1721029706569,0.494517,3368.2,3366.9,1.87]
[1721029706910,3.494517,3368.2,3366.9,1.87]
[1721029707576,3.494517,3368.2,3367.3,1.7]
[1721029707772,0.8989687,3368.1,3367.3,1.7]
[1721029707968,3.5711087,3368.1,3366.9,1.87]
[1721029708398,3.0,3368.0,3366.9,1.87]
[1721029708872,0.8989687,3368.1,3367.3,1.7]
[1721029709072,0.8989687,3368.1,3366.9,0.17]
[1721029709073,3.0,3368.2,3367.8,1.7]
[1721029709272,5.63254176,3368.9,3368.3,1.7]
[1721029709273,0.36200176,3368.9,3368.3,1.7]
[1721029709499,2.3574,3369.8,3368.7,1.7]
[1721029709767,1.24142832,3370.8,3368.7,1.7]
[1721029709768,2.3574,3370.2,3369.1,1.7]
[1721029709994,0.24091306,3370.1,3369.1,1.7]
[1721029710390,0.24091306,3370.1,3369.5,1.7]
[1721029711368,0.24091306,3370.1,3368.8,0.05935746]
[1721029711369,0.24091306,3370.1,3369.1,1.7]
[1721029711969,3.24091306,3370.1,3368.8,1.7]
[1721029712174,0.55,3370.0,3368.8,1.7]
[1721029712375,0.61483131,3369.9,3368.8,1.7]
[1721029712651,2.67093,3369.7,3368.3,1.7]
[1721029712792,0.61483131,3369.9,3368.3,1.7]
[1721029712793,0.55,3369.8,3368.3,1.7]
[1721029713108,0.55,3369.8,3368.2,0.05937087]
[1721029713109,0.55,3369.8,3368.7,1.7]
[1721029713311,3.55,3369.8,3368.7,1.7]
[1721029713608,0.68355413,3369.7,3368.7,1.7]
[1721029714814,3.35442413,3369.7,3368.7,1.7]
[1721029715021,8.60375,3369.6,3368.3,1.7]
[1721029715181,5.9328,3369.6,3368.3,1.7]
[1721029715383,2.6711,3369.4,3368.3,1.7]
[1721029715617,3.86039,3369.3,3368.3,1.7]
[1721029715820,0.86039,3369.3,3368.3,1.7]
[1721029716927,0.55,3369.2,3368.3,1.7]
[1721029717217,2.67142,3369.0,3367.7,1.7]
[1721029717381,0.817022,3368.9,3367.5,1.7]
[1721029717578,3.817022,3368.9,3367.5,1.7]
[1721029717991,3.817022,3368.9,3367.7,1.7]
[1721029718628,2.67181,3368.5,3367.4,1.7]
[1721029718929,2.67181,3368.5,3367.3,1.7]
[1721029718930,2.2774,3368.3,3367.3,1.7]
[1721029719392,0.55,3368.2,3367.3,1.7]
[1721029719713,3.55,3368.2,3367.3,1.7]
[1721029721135,3.0,3368.2,3367.3,1.7]
[1721029721294,3.0,3368.2,3367.7,1.7]
[1721029721492,0.30879778,3369.8,3368.1,1.7]
[1721029721493,2.3756,3369.1,3368.1,1.7]
[1721029723524,0.55,3369.0,3368.1,1.7]
[1721029723717,3.55,3369.0,3368.1,1.7]
[1721029723888,5.25419631,3369.0,3368.1,1.7]
[1721029725031,5.25419631,3369.0,3367.7,1.7]
[1721029725336,5.25419631,3369.0,3366.9,0.05937733]
[1721029725337,5.25419631,3369.0,3367.6,1.7]
[1721029725518,2.67166,3368.7,3367.6,1.7]
[1721029725726,2.67182,3368.5,3367.6,1.7]
[1721029726017,3.817182,3368.4,3367.6,1.7]
[1721029726823,0.817182,3368.4,3367.6,1.7]
[1721029727313,3.0,3368.5,3367.6,1.7]
[1721029728713,0.55,3368.4,3367.6,1.7]
[1721029729036,3.0,3368.5,3367.6,1.7]
[1721029730133,3.0,3368.5,3368.1,1.7]
[1721029730640,3.0,3368.5,3366.9,2.5437847]
[1721029730641,3.0,3368.5,3367.7,1.7]
[1721029731307,3.84450931,3368.5,3367.7,1.7]
[1721029732904,2.3756,3369.1,3367.7,1.7]
[1721029732905,0.05175653,3370.3,3370.1,1.7]
[1721029733439,1.23439885,3371.4,3369.7,1.7]
[1721029733440,2.2679,3371.3,3369.7,1.7]
[1721029733636,1.52039408,3371.2,3369.7,1.7]
[1721029733804,0.493742,3371.2,3370.2,1.7]
[1721029734005,0.05170895,3371.3,3370.6,1.7]
[1721029738007,4.93696,3372.0,3370.6,1.7]
[1721029738207,0.05171128,3371.8,3370.6,1.7]
[1721029738445,0.55,3371.7,3370.6,1.7]
[1721029740913,0.55,3371.7,3371.0,1.7]
[1721029741118,1.09417113,3371.6,3371.0,1.7]
[1721029741625,1.09417113,3371.6,3371.1,5.9324]
[1721029741833,3.05171128,3371.8,3371.1,5.9324]
[1721029742024,3.0,3371.8,3371.4,1.7]
[1721029742223,3.0,3371.8,3371.5,5.9321]
[1721029742418,3.0,3372.1,3371.5,5.9321]
[1721029746452,3.0,3372.1,3371.8,1.7]
[1721029746691,3.0,3372.1,3371.9,5.9314]
[1721029747767,3.0,3372.5,3371.9,5.9314]
[1721029747972,1.034,3372.4,3371.9,5.9314]
[1721029748593,7.34,3372.6,3371.9,5.9314]
[1721029748749,7.34,3372.6,3372.4,1.7]
[1721029748951,7.34,3372.6,3372.5,5.9303]
[1721029750180,10.34,3372.6,3372.5,5.9303]
[1721029750681,3.0,3372.6,3372.5,5.9303]
[1721029750881,2.2729,3373.1,3372.5,5.9303]
[1721029751095,0.794091,3373.0,3372.5,5.9303]
[1721029751298,3.0,3373.0,3372.5,5.9303]
[1721029751609,3.0,3373.2,3372.5,5.9303]
[1721029751756,0.0008,3373.4,3372.5,5.9303]
[1721029751757,3.0008,3373.4,3372.5,5.9303]
[1721029752993,0.55,3373.3,3372.5,5.9303]
[1721029753413,2.66809,3373.2,3372.5,5.9303]
[1721029753554,0.55,3373.3,3372.5,5.9303]
[1721029753555,2.66847,3372.8,3372.5,5.9303]
[1721029754076,3.55,3372.7,3372.5,5.9303]
[1721029755449,3.0,3372.6,3372.5,5.9303]
[1721029755651,0.55,3372.7,3372.5,5.9303]
[1721029755898,0.55,3372.8,3372.5,5.9303]
[1721029756079,0.621833,3372.7,3372.5,5.9303]
[1721029757070,2.4445,3372.6,3372.5,5.9303]
[1721029757279,8.66306,3372.6,3372.5,5.9303]
[1721029757837,5.9945,3372.6,3372.5,5.9303]
[1721029758804,3.0,3372.6,3372.5,5.9303]
[1721029758976,3.0,3372.9,3372.5,5.9303]
[1721029759189,0.3,3372.8,3372.5,5.9303]
[1721029760338,2.66856,3372.6,3372.5,5.9303]
[1721029760626,8.88712,3372.6,3372.5,5.9303]
[1721029760845,8.17542,3372.6,3372.5,5.9303]
[1721029760987,2.66911,3371.9,3371.0,1.7]
[1721029761300,3.533808,3371.8,3371.0,1.7]
[1721029762421,1.02649171,3371.7,3371.0,1.7]
[1721029762617,6.202998,3371.8,3371.0,1.7]
[1721029762825,6.202998,3371.8,3369.9,2.4225]
[1721029762826,2.66941,3371.6,3369.9,2.4225]
[1721029763130,7.34,3371.4,3370.6,1.7]
[1721029763345,1.0264962,3371.3,3370.6,1.7]
[1721029763522,4.0264962,3371.3,3370.6,1.7]
[1721029763684,1.0264962,3371.2,3370.6,1.7]
[1721029764355,1.0264962,3371.2,3370.2,1.7]
[1721029764628,2.66988,3371.0,3370.2,1.7]
[1721029764836,1.0264962,3370.9,3370.2,1.7]
[1721029765047,4.0264962,3370.9,3370.2,1.7]
[1721029765221,0.05171583,3371.3,3370.2,1.7]
[1721029765222,3.05171583,3371.3,3370.2,1.7]
[1721029765735,1.02666158,3371.2,3370.6,1.7]
[1721029765945,3.05171583,3371.3,3370.6,1.7]
[1721029766093,1.0266411,3371.2,3370.6,1.7]
[1721029766281,3.05171583,3371.3,3370.6,1.7]
[1721029766486,1.02662425,3371.2,3370.6,1.7]
[1721029766682,3.05171583,3371.3,3370.6,1.7]
[1721029766927,2.97939175,3371.2,3369.5,3.454]
[1721029767131,8.36664602,3371.1,3370.3,1.7]
[1721029767335,4.02664602,3371.0,3370.3,1.7]
[1721029767488,3.0,3371.0,3370.3,1.7]
[1721029768336,3.0,3371.0,3370.7,1.7]
[1721029768788,7.34,3371.1,3370.7,1.7]
[1721029769914,7.34,3371.1,3370.3,0.17]
[1721029770229,7.34,3371.1,3370.2,1.7]
[1721029770594,7.34,3371.1,3370.6,1.7]
[1721029771443,3.0,3371.4,3370.6,1.7]
[1721029771597,3.0,3371.3,3370.6,1.7]
[1721029771994,2.6696,3371.3,3370.6,1.7]
[1721029772304,4.567903,3371.2,3370.6,1.7]
[1721029772517,3.0,3371.2,3370.6,1.7]
[1721029772707,10.00943,3371.5,3370.6,1.7]
[1721029772708,3.0,3371.4,3370.6,1.7]
[1721029772932,5.66951,3371.4,3370.6,1.7]
[1721029773120,2.66967,3371.2,3370.4,1.7]
[1721029773326,3.0,3371.1,3370.4,1.7]
[1721029774135,6.503678,3371.1,3370.4,1.7]
[1721029774342,0.55,3371.0,3370.4,1.7]
[1721029774549,3.833918,3371.1,3370.4,1.7]
[1721029774550,3.0,3371.1,3370.4,1.7]
[1721029774733,3.0,3371.3,3370.4,1.7]
[1721029775066,3.0,3371.3,3369.6,1.7]
[1721029775067,5.1637,3370.6,3369.6,1.7]
[1721029775201,5.1637,3370.6,3369.5,16.23407121]
[1721029775202,2.67023,3370.5,3369.5,16.23407121]
[1721029775405,3.55,3370.5,3369.6,1.7]
[1721029775821,3.0,3370.5,3370.0,1.7]
[1721029776028,2.4935,3370.6,3370.0,1.7]
[1721029776029,8.16365,3370.6,3370.0,1.7]
[1721029776940,5.4935,3370.6,3370.0,1.7]
[1721029777749,3.0,3370.6,3370.0,1.87]
[1721029778940,3.0,3370.6,3369.9,1.7]
[1721029779311,3.0,3370.6,3369.5,16.23407121]
[1721029779507,5.67018,3370.6,3369.9,1.7]
[1721029779710,3.0,3370.6,3369.5,16.23407121]
[1721029779937,3.22023,3370.5,3369.5,16.23407121]
[1721029780212,7.70713599,3370.4,3369.5,16.23407121]
[1721029780831,2.67039,3370.3,3369.5,16.23407121]
[1721029781036,3.0,3370.2,3369.5,16.23407121]
[1721029781753,8.02028,3370.2,3369.5,16.23407121]
[1721029781936,0.55,3370.1,3369.5,16.23407121]
[1721029782275,2.67071,3369.9,3369.5,16.23407121]
[1721029782573,3.0,3369.8,3369.5,16.23407121]
[1721029783166,5.67078,3369.8,3369.5,16.23407121]
[1721029783672,3.0,3369.8,3369.5,16.23407121]
[1721029784128,3.0,3370.2,3369.5,16.23407121]
[1721029784327,3.0,3370.2,3369.5,18.02747833]
[1721029785033,3.0,3370.2,3369.6,13.38501751]
[1721029785585,0.55,3370.1,3369.6,13.38501751]
[1721029785880,3.0,3370.1,3369.6,13.38501751]
[1721029786228,10.01038,3370.3,3369.6,13.38501751]
[1721029786229,3.0,3370.2,3369.6,13.38501751]
[1721029788226,3.971578,3370.1,3369.6,13.38501751]
[1721029788428,3.55,3370.0,3368.7,1.7]
[1721029788628,6.22062,3370.0,3368.7,1.7]
[1721029788827,2.67071,3369.9,3368.7,1.7]
[1721029789062,3.0,3369.8,3368.8,0.17]
[1721029792067,5.67079,3369.8,3368.8,0.17]
[1721029792491,1.5770902,3369.7,3368.7,1.7]
[1721029792666,2.6711,3369.4,3368.7,1.7]
[1721029792993,5.67118,3369.3,3368.7,1.7]
[1721029793187,4.02720353,3369.3,3368.3,1.7]
[1721029793348,4.02720353,3369.3,3368.0,1.7]
[1721029793349,7.05874153,3369.2,3368.0,1.7]
[1721029793681,7.05874153,3369.2,3368.2,1.7]
[1721029793682,2.67151,3368.9,3368.2,1.7]
[1721029793831,5.59,3369.1,3368.2,1.7]
[1721029794031,8.26133,3369.1,3368.2,1.7]
[1721029794279,8.26133,3369.1,3366.6,4.41800917]
[1721029794280,2.59,3368.7,3367.5,1.7]
[1721029794433,5.26168,3368.7,3367.5,1.7]
[1721029794772,5.67174,3368.6,3367.5,1.7]
[1721029796037,2.67181,3368.5,3367.5,1.7]
[1721029796240,3.0,3368.4,3367.5,1.7]
[1721029796463,3.0,3368.4,3367.6,0.17]
[1721029796670,3.0,3368.4,3367.5,1.7]
[1721029796877,2.67198,3368.3,3367.5,1.7]
[1721029797087,3.0,3368.2,3367.5,1.7]
[1721029797436,3.0,3368.3,3367.5,1.7]
[1721029797637,5.67198,3368.3,3367.5,1.7]
[1721029797832,2.67213,3368.1,3367.5,1.7]
[1721029798037,3.0,3368.0,3367.5,1.7]
[1721029798535,2.67205,3368.2,3367.5,1.7]
[1721029798736,3.0,3368.1,3367.5,1.7]
[1721029799734,3.0,3368.1,3366.8,0.05939218]
[1721029799931,3.0,3368.1,3366.7,2.3432]
[1721029799932,10.34,3368.1,3367.5,1.7]
[1721029800233,10.34,3368.1,3366.9,0.26473413]
[1721029800234,2.4993,3368.0,3367.1,1.7]
[1721029800983,2.67238,3367.8,3367.1,1.7]
[1721029801432,3.0,3367.7,3367.1,1.7]
[1721029802146,4.158387,3368.3,3367.1,1.7]
[1721029802147,1.568387,3368.3,3367.1,1.7]
[1721029802340,3.0,3368.2,3367.2,0.17]
[1721029802653,3.0,3368.3,3367.6,1.7]
[1721029803676,3.0,3368.3,3367.1,1.7]
[1721029804039,2.67213,3368.1,3367.1,1.7]
[1721029804280,5.67204,3368.3,3367.1,1.7]
[1721029804586,5.67204,3368.3,3367.2,0.17]
[1721029804587,3.0,3368.3,3367.2,0.17]
[1721029808979,3.0,3368.3,3367.1,1.7]
[1721029808980,2.67237,3367.8,3367.1,1.7]
[1721029809182,3.0,3367.7,3367.1,1.7]
[1721029810083,2.3692,3367.6,3367.1,1.7]
[1721029810848,5.04178,3367.6,3366.7,1.7]
[1721029811049,6.11837881,3367.6,3366.7,1.7]
[1721029811777,2.67261,3367.5,3366.7,1.7]
[1721029812019,3.0,3367.4,3366.7,1.7]
[1721029812825,5.67269,3367.4,3366.7,1.7]
[1721029813198,3.0,3367.4,3366.7,1.7]
[1721029813538,3.0,3367.5,3366.7,1.87]
[1721029813693,2.67246,3367.7,3366.7,1.87]
[1721029813896,3.0,3367.8,3366.7,1.7]
[1721029814355,2.67246,3367.7,3366.7,1.7]
[1721029814540,3.0,3367.6,3366.7,1.7]
[1721029814835,0.05176807,3367.9,3367.1,1.7]
[1721029815036,3.05176807,3367.9,3367.2,0.17]
[1721029815219,3.05176807,3367.9,3367.1,1.7]
[1721029815220,3.0,3367.9,3367.1,1.7]
[1721029817047,5.6723,3367.9,3367.1,1.7]
[1721029817251,2.67244,3367.7,3366.8,1.7]
[1721029818134,3.0,3367.6,3366.8,1.7]
[1721029818727,2.67273,3367.4,3366.4,1.7]
[1721029819061,4.082215,3367.3,3366.4,1.7]
[1721029819278,4.082215,3367.3,3366.5,5.9402]
[1721029819764,1.02789792,3367.2,3366.5,5.9402]
[1721029819924,4.082215,3367.3,3366.5,5.9402]
[1721029820120,1.02792029,3367.2,3366.5,5.9402]
[1721029820326,0.77828653,3367.1,3366.5,5.9402]
[1721029820756,3.0,3367.3,3366.5,5.9402]
[1721029820960,3.0,3367.6,3366.5,5.99960115]
[1721029821266,3.0,3367.8,3366.5,5.99960115]
[1721029821470,1.57772754,3367.7,3366.5,5.99960115]
[1721029821634,1.02772754,3367.6,3366.5,5.99960111]
[1721029821833,1.02772754,3367.7,3366.6,0.76996011]
[1721029822172,5.67238,3367.8,3366.7,5.9405]
[1721029822373,1.02772688,3367.7,3366.7,5.9405]
[1721029822859,3.70017688,3367.7,3366.7,5.9405]
[1721029823032,4.02772688,3367.6,3366.7,5.9405]
[1721029823226,1.96498257,3367.5,3366.7,5.9405]
[1721029823457,1.57772688,3367.4,3366.7,5.9405]
[1721029823625,2.67293,3367.1,3366.7,5.9405]
[1721029823827,3.48902688,3367.0,3366.7,5.9405]
[1721029824029,4.02772688,3366.9,3366.7,5.9405]
[1721029824260,1.02772688,3366.8,3366.7,5.9405]
[1721029824460,4.88439757,3366.8,3366.7,5.9405]
[1721029824653,7.88439757,3366.8,3366.7,5.9405]
[1721029825245,6.85667069,3366.8,3366.7,5.9405]
[1721029825428,7.88469541,3366.8,3366.7,5.9405]
[1721029825963,5.21153541,3366.8,3366.7,5.9405]
[1721029826130,2.21153541,3366.8,3366.7,5.9405]
[1721029827057,4.88469541,3366.8,3366.7,5.9405]
[1721029827259,7.88469541,3366.8,3366.7,5.9405]
[1721029827835,8.43469541,3366.8,3366.7,5.9405]
[1721029828571,8.43473444,3366.8,3366.7,5.9405]
[1721029828732,11.10789444,3366.8,3366.7,5.9405]